fUST/lending_fUST_20251108
["ID","MTS","AMOUNT","RATE_DAILY","PERIOD"]
[393385736,1762566495128,4588.97,0.0003287,120]
[393385879,1762566634964,234.0,0.00032,120]
[393385887,1762566637598,-896.0,0.00018475,2]
[393385888,1762566637609,-179.99453516,0.00018475,2]
[393385889,1762566637619,-502.86567746,0.0001865,2]
[393385890,1762566637628,-501.49690776,0.0001865,2]
[393385891,1762566637638,-2513.59943199,0.00019715,2]
[393385892,1762566637647,-1357.19986737,0.00019937,2]
[393385916,1762566646359,-1156.39956463,0.00019937,2]
[393385917,1762566646369,-530.33142,0.00020187,2]
[393385918,1762566646379,-1000.0,0.00020207,2]
[393385919,1762566646388,-211.6106858,0.00020385,2]
[393385920,1762566646398,-212.39355148,0.00020475,2]
[393385921,1762566646407,-599.85789777,0.00020594,2]
[393385922,1762566646417,-300.0,0.00020594,2]
[393385923,1762566646426,-209.57357028,0.00020929,2]
[393385924,1762566646435,-300.0,0.00020998,2]
[393385925,1762566646445,-3933.0,0.00021,2]
[393385926,1762566646454,-300.0,0.00021419,20]
[393385927,1762566646463,-160.0,0.00021556,2]
[393385928,1762566646473,-183.8538859,0.00021726,2]
[393385929,1762566646483,-168.0,0.00021901,2]
[393385930,1762566646492,-9484.9619256,0.00021989,2]
[393385931,1762566646502,-818.783445,0.00021989,2]
[393385932,1762566646511,-311.72367191,0.00022,2]
[393385946,1762566810609,10000.0,0.0003287,120]
[393385947,1762566812600,6000.0,0.0003702,20]
[393385948,1762566821713,10000.0,0.0003287,120]
[393385949,1762566832881,10000.0,0.0003287,120]
[393385950,1762566848825,10000.0,0.0003287,120]
[393385953,1762567004270,60000.0,0.0003702,120]
[393385960,1762567543372,70000.0,0.00037028,30]
[393385961,1762567679377,150.12096885,0.00037028,120]
[393385997,1762567831874,-217.8223652,0.00020384,2]
[393385999,1762567831884,-182.76677342,0.0002062,2]
[393386001,1762567831893,-300.0,0.00020857,2]
[393386002,1762567831902,-300.0,0.00020857,2]
[393386004,1762567831912,-300.0,0.00020857,2]
[393386006,1762567831921,-1200.0,0.00020857,2]
[393386008,1762567831930,-500.0,0.00020858,2]
[393386010,1762567831940,-500.0,0.00020858,2]
[393386012,1762567831953,-500.0,0.00020858,2]
[393386014,1762567831962,-500.0,0.00020858,2]
[393386016,1762567831971,-298.33178979,0.00020858,2]
[393386018,1762567831980,-5907.4401414,0.00020859,2]
[393386020,1762567831989,-2442.706632,0.00020859,2]
[393386022,1762567831998,-2406.9657816,0.00020859,2]
[393386024,1762567832007,-160.0,0.00020978,2]
[393386026,1762567832018,-418.01544834,0.0002099,2]
[393386028,1762567832027,-1000.0,0.000218,2]
[393386029,1762567832036,-9118.73667794,0.000218,2]
[393386032,1762567832047,-10682.63849619,0.000218,2]
[393386162,1762567837773,-325.76237576,0.000218,2]
[393386163,1762567837785,-5310.01904398,0.000218,2]
[393386164,1762567837827,-159.37362493,0.000218,2]
[393386165,1762567837836,-659.32,0.00021888,10]
[393386166,1762567837845,-549.44,0.00021888,10]
[393386167,1762567837854,-457.86,0.00021888,10]
[393386168,1762567837863,-381.55,0.00021888,10]
[393386169,1762567837872,-572.58654024,0.00021896,2]
[393386170,1762567837880,-500.0,0.00021897,2]
[393386172,1762567837889,-500.0,0.00021897,2]
[393386174,1762567837898,-500.0,0.00021897,2]
[393386176,1762567837907,-500.0,0.00021897,2]
[393386177,1762567837916,-500.0,0.00021897,2]
[393386178,1762567837925,-443.51523992,0.00021897,2]
[393386179,1762567837934,-500.0,0.00021897,2]
[393386180,1762567837942,-514.68474088,0.00021897,2]
[393386181,1762567837953,-597.64339039,0.00021897,2]
[393386182,1762567837963,-521.45687303,0.00021897,2]
[393386183,1762567837972,-183.17374777,0.00021897,2]
[393386184,1762567837980,-177.51593226,0.00021897,2]
[393386185,1762567837989,-28328.94620366,0.00021898,2]
[393386186,1762567838001,-789.01218507,0.00021898,2]
[393386187,1762567838013,-982.6,0.00021898,2]
[393386188,1762567838024,-68614.20160733,0.00021898,2]
[393386189,1762567838038,-34646.08066393,0.00021898,2]
[393386190,1762567838049,-2860.09699934,0.00021898,2]
[393386191,1762567838162,-6952.01183426,0.00021898,2]
[393386196,1762567839921,-48118.89786752,0.00021898,2]
[393386197,1762567839932,-3660.38859975,0.00021898,2]
[393386198,1762567839976,-3569.38651395,0.00021898,2]
[393386233,1762567846255,-3605.49955301,0.00021898,2]
[393386235,1762567846266,-35751.19301334,0.00021898,2]
[393386237,1762567846278,-48179.05404648,0.00021898,2]
[393386239,1762567846289,-372.9242503,0.00021898,2]
[393386241,1762567846534,-13667.1685619,0.00021898,2]
[393386243,1762567947123,152.0,0.00018,2]
[393386246,1762568190632,10054.97,0.00037024,120]
[393386247,1762568565577,220.0,0.00037014,120]
[393386271,1762568907906,764.43013232,0.00037015,120]
[393386272,1762568908494,2781.54355454,0.00029,120]
[393386273,1762568910642,263.87643542,0.00037015,90]
[393386274,1762568913341,625.31448277,0.00037015,60]
[393386275,1762568913580,177.13656895,0.00028,120]
[393386277,1762568915852,3341.93477377,0.00018,2]
[393386279,1762568918400,171.97379697,0.00037015,60]
[393386282,1762568938520,501.16813332,0.00037015,120]
[393386296,1762569032126,-274.0531823,0.00019763,2]
[393386297,1762569032136,-410.10690863,0.00019763,2]
[393386298,1762569032145,-119.89476781,0.00019763,2]
[393386299,1762569032158,-842.10523219,0.00019763,2]
[393386300,1762569032167,-161.0839225,0.00020654,2]
[393386301,1762569032176,-194.35143795,0.00020729,2]
[393386303,1762569032187,-168.0,0.00020811,2]
[393386305,1762569032197,-168.0,0.0002086,2]
[393386307,1762569032206,-168.0,0.00021191,2]
[393386308,1762569032215,-168.0,0.00021337,2]
[393386309,1762569032224,-70.4900329,0.00021395,2]
[393386312,1762569037981,-194.35143795,0.00019763,2]
[393386313,1762569037991,-117.97311684,0.00021395,2]
[393386314,1762569038002,-211.3551926,0.00021395,2]
[393386315,1762569038012,-168.0,0.00021396,2]
[393386316,1762569038022,-264.0,0.00021432,2]
[393386317,1762569038032,-312.2888789,0.00021499,2]
[393386318,1762569038043,-1200.0,0.00021599,2]
[393386319,1762569038053,-592.3400505,0.000216,2]
[393386320,1762569038063,-592.3400505,0.000216,2]
[393386321,1762569038073,-245.0910335,0.000216,2]
[393386322,1762569038083,-264.0,0.0002169,2]
[393386323,1762569038094,-300.0,0.00021699,2]
[393386324,1762569038105,-300.0,0.00021699,2]
[393386325,1762569038115,-110.9605026,0.000217,2]
[393386326,1762569038128,-481.538591,0.000217,2]
[393386327,1762569038139,-677.81518095,0.00021746,2]
[393386328,1762569038160,-16386.53829825,0.00021746,2]
[393386329,1762569038170,-1770.74034386,0.00021746,2]
[393386330,1762569038181,-229.33469679,0.00021763,2]
[393386331,1762569038193,-161.28022224,0.00021767,2]
[393386436,1762569043211,-102.71977776,0.00021767,2]
[393386437,1762569043221,-9374.91847268,0.00021798,2]
[393386441,1762569046452,-153.34,0.00021788,10]
[393386442,1762569046461,-6322.78149901,0.00021798,2]
[393386443,1762569046714,-15945.88442,0.00021798,2]
[393386450,1762569266191,10000.0,0.00037013,20]
[393386454,1762569550260,1276.5,0.00032877,120]
[393386889,1762570238203,-181.9906865,0.00021378,2]
[393386891,1762570238213,-1549.39780086,0.00021399,2]
[393386893,1762570238224,-300.0,0.00021472,2]
[393386895,1762570238234,-498.0,0.00021472,2]
[393386897,1762570238243,-500.0,0.00021473,2]
[393386898,1762570238253,-470.69704253,0.00021473,2]
[393386900,1762570238262,-500.0,0.00021473,2]
[393386902,1762570238272,-500.0,0.00021473,2]
[393386904,1762570238281,-500.60521065,0.00021473,2]
[393386906,1762570238290,-503.29330661,0.00021473,2]
[393386908,1762570238299,-169.22,0.00021487,10]
[393386910,1762570238308,-4401.13400294,0.00021497,2]
[393387101,1762570240408,-2318.52516,0.00021497,2]
[393387410,1762570243463,-6878.00338228,0.00021497,2]
[393387722,1762570246717,-10746.78166921,0.00021497,2]
[393387724,1762570246731,-3186.78922494,0.00021497,2]
[393387745,1762570246927,-487.07416272,0.00021497,2]
[393388303,1762570588290,182.0,0.00032877,120]
[393388305,1762570616858,300000.000001,0.00032,120]
[393388306,1762570650549,531.074785,0.00013699,2]
[393388309,1762570743395,1252.0,0.00032877,120]
[393388310,1762570803162,1288.05977315,0.00018,2]
[393388313,1762571103079,1293.23433804,0.00018,2]
[393388353,1762571432393,-197.0431733,0.0002,2]
[393388354,1762571432402,-123.9568267,0.00020187,2]
[393388452,1762571438344,-54.39404607,0.00020187,2]
[393388454,1762571438354,-531.074785,0.00020187,2]
[393388456,1762571438364,-59.05406625,0.00021269,2]
[393388458,1762571438375,-5828.94593375,0.00021269,2]
[393388460,1762571438384,-300.0,0.00021372,2]
[393388462,1762571438394,-500.0,0.00021373,2]
[393388464,1762571438403,-218.18589099,0.00021373,2]
[393388466,1762571438413,-500.0,0.00021373,2]
[393388468,1762571438422,-500.0,0.00021399,2]
[393388470,1762571438432,-500.0,0.00021399,2]
[393388472,1762571438441,-500.0,0.00021399,2]
[393388474,1762571438450,-500.0,0.00021399,2]
[393388476,1762571438460,-500.0,0.00021399,2]
[393388478,1762571438470,-500.0,0.00021399,2]
[393388480,1762571438479,-489.23039163,0.00021399,2]
[393388482,1762571438488,-500.0,0.00021399,2]
[393388484,1762571438497,-500.0,0.00021399,2]
[393388486,1762571438507,-500.0,0.00021399,2]
[393388488,1762571438516,-500.0,0.00021399,2]
[393388490,1762571438525,-500.0,0.00021399,2]
[393388491,1762571438534,-500.0,0.00021399,2]
[393388493,1762571438543,-6879.06003448,0.000214,2]
[393388496,1762571438555,-7106.6781338,0.000214,2]
[393388498,1762571438572,-671.27813241,0.000214,2]
[393388500,1762571438585,-1397.97056275,0.000214,2]
[393388503,1762571438598,-10136.61465681,0.000214,2]
[393388673,1762571440476,-3608.13182916,0.000214,2]
[393388687,1762571440607,-40839.87884557,0.000214,2]
[393388688,1762571440616,-164.25,0.000214,2]
[393388690,1762571440626,-264.2,0.00021487,10]
[393388692,1762571440635,-220.17,0.00021487,10]
[393388694,1762571440644,-23411.32963476,0.00021497,2]
[393388995,1762571443499,-2606.14333278,0.00021497,2]
[393388997,1762571443511,-549.68735634,0.00021497,2]
[393389297,1762571447060,-1075.6164,0.00021497,2]
[393389299,1762571447071,-1075.6164,0.00021497,2]
[393389713,1762571991910,3805.45,0.00032877,120]
[393389717,1762572285217,500.0,0.00037032,60]
[393389718,1762572285443,500.0,0.00037032,60]
[393389719,1762572285694,500.0,0.00037032,60]
[393389720,1762572286029,500.0,0.00037032,60]
[393389721,1762572286146,500.0,0.00037032,60]
[393389722,1762572286386,182.32434882,0.00037032,60]
[393389726,1762572408210,229.01282981,0.00037032,20]
[393389739,1762572463445,17156.91851808,0.00018,2]
[393389740,1762572467619,9671.24088696,0.00018,2]
[393389742,1762572506756,22094.87641786,0.00017,2]
[393389743,1762572512017,14942.73645127,0.00018,2]
[393389796,1762572632549,-538.86766049,0.00020326,2]
[393389802,1762572632607,-874.63818407,0.00020326,2]
[393389804,1762572632618,-1218.93487405,0.00020326,2]
[393389806,1762572632629,-2367.55928139,0.00020326,2]
[393389808,1762572632640,-1432.45189584,0.00020531,2]
[393389809,1762572632650,-193.95150026,0.00020804,2]
[393389811,1762572632659,-1200.0,0.0002097,2]
[393389813,1762572632668,-300.0,0.00020971,2]
[393389815,1762572632678,-1200.0,0.00020972,2]
[393389816,1762572632687,-500.0,0.00020973,2]
[393389818,1762572632696,-502.31529663,0.00020973,2]
[393389820,1762572632705,-501.84692803,0.00020973,2]
[393389822,1762572632715,-500.0,0.00020973,2]
[393389824,1762572632723,-500.0,0.00020973,2]
[393389826,1762572632732,-500.0,0.00020973,2]
[393389827,1762572632741,-500.0,0.00020973,2]
[393389829,1762572632750,-500.0,0.00020973,2]
[393389833,1762572632861,-500.0,0.00020973,2]
[393389834,1762572632871,-512.71835311,0.00020973,2]
[393389835,1762572632880,-500.0,0.00020973,2]
[393389836,1762572632889,-501.82760467,0.00020973,2]
[393389837,1762572632900,-502.0203698,0.00020973,2]
[393389838,1762572632909,-150.0,0.00020973,2]
[393389839,1762572632918,-503.71198577,0.00020973,2]
[393389840,1762572632928,-314.59851277,0.00020973,2]
[393389841,1762572632942,-13422.02437937,0.00020973,2]
[393389842,1762572632952,-183.47,0.0002098,10]
[393389843,1762572632962,-500.0,0.00020988,2]
[393389844,1762572632971,-500.0,0.00020988,2]
[393389845,1762572632981,-591.26160648,0.00020988,2]
[393389846,1762572632990,-500.0,0.00020988,2]
[393389847,1762572633003,-500.0,0.00020988,2]
[393389848,1762572633013,-500.0,0.00020988,2]
[393389849,1762572633023,-500.0,0.00020988,2]
[393389850,1762572633033,-430.68687012,0.00020988,2]
[393389851,1762572633043,-500.0,0.00020988,2]
[393389852,1762572633053,-500.0,0.00020988,2]
[393389853,1762572633062,-500.0,0.00020988,2]
[393389854,1762572633072,-500.0,0.00020988,2]
[393389855,1762572633081,-500.0,0.00020988,2]
[393389856,1762572633090,-535.45547923,0.00020988,2]
[393389857,1762572633100,-500.0,0.00020988,2]
[393389858,1762572633109,-408.03693976,0.00020988,2]
[393389859,1762572633118,-500.0,0.00020988,2]
[393389860,1762572633128,-500.0,0.00020988,2]
[393389861,1762572633137,-500.0,0.00020988,2]
[393389862,1762572633146,-500.0,0.00020988,2]
[393389863,1762572633155,-500.0,0.00020988,2]
[393389864,1762572633164,-500.0,0.00020988,2]
[393389865,1762572633174,-500.0,0.00020988,2]
[393389866,1762572633183,-500.0,0.00020988,2]
[393389867,1762572633192,-500.0,0.00020988,2]
[393389868,1762572633201,-500.0,0.00020988,2]
[393389869,1762572633210,-500.0,0.00020988,2]
[393389870,1762572633219,-500.0,0.00020988,2]
[393389871,1762572633228,-500.0,0.00020988,2]
[393389872,1762572633237,-500.0,0.00020988,2]
[393389873,1762572633247,-500.0,0.00020988,2]
[393389874,1762572633258,-500.0,0.00020988,2]
[393389875,1762572633267,-500.0,0.00020988,2]
[393389876,1762572633276,-500.0,0.00020988,2]
[393389877,1762572633286,-500.0,0.00020988,2]
[393389878,1762572633295,-500.0,0.00020988,2]
[393389879,1762572633306,-500.0,0.00020988,2]
[393389880,1762572633315,-344.86230574,0.00020989,2]
[393389881,1762572633324,-500.0,0.00020989,2]
[393389882,1762572633334,-500.0,0.00020989,2]
[393389883,1762572633343,-500.0,0.00020989,2]
[393389884,1762572633352,-500.0,0.00020989,2]
[393389885,1762572633362,-500.0,0.00020989,2]
[393389886,1762572633371,-100000.0,0.0002099,2]
[393389887,1762572633380,-160.47,0.00021,2]
[393389888,1762572633389,-300.0,0.0002111,2]
[393389889,1762572633399,-160.47,0.000212,2]
[393389890,1762572633408,-164.08794523,0.000212,2]
[393389891,1762572633418,-450.0,0.00021247,2]
[393389892,1762572633427,-13693.84111173,0.000213,2]
[393389893,1762572633436,-160.47,0.000213,2]
[393389894,1762572633446,-164.08794522,0.000213,2]
[393389895,1762572633455,-264.0,0.00021363,2]
[393389896,1762572633463,-534.39878608,0.00021384,2]
[393389897,1762572633473,-264.0,0.00021389,2]
[393389898,1762572633483,-685000.0,0.00021397,2]
[393389899,1762572633492,-4566.0,0.000214,2]
[393389900,1762572633503,-500.0,0.00021425,2]
[393389901,1762572633514,-500.0,0.00021425,2]
[393389902,1762572633525,-500.0,0.00021425,2]
[393389903,1762572633536,-500.0,0.00021425,2]
[393389904,1762572633546,-1612.242191,0.00021426,2]
[393389905,1762572633556,-40169.1546888,0.00021426,2]
[393389906,1762572633566,-3126.42322,0.00021426,2]
[393389907,1762572633575,-500.0,0.00021471,2]
[393389908,1762572633584,-500.0,0.00021471,2]
[393389909,1762572633594,-500.0,0.00021472,2]
[393389910,1762572633603,-165.0105398,0.00021472,2]
[393389911,1762572633615,-500.0,0.00021473,2]
[393389912,1762572633626,-578.98366347,0.00021473,2]
[393389913,1762572633635,-288.36149196,0.00021473,2]
[393389914,1762572633645,-500.0,0.00021473,2]
[393389915,1762572633654,-500.0,0.00021473,2]
[393389916,1762572633664,-502.52402556,0.00021473,2]
[393389917,1762572633674,-504.03953604,0.00021473,2]
[393389918,1762572633684,-636.62842015,0.00021473,2]
[393389919,1762572633694,-500.0,0.00021473,2]
[393389920,1762572633704,-500.0,0.00021473,2]
[393389921,1762572633713,-500.0,0.00021473,2]
[393389922,1762572633722,-501.60176011,0.00021473,2]
[393389923,1762572633731,-500.0,0.00021473,2]
[393389924,1762572633741,-500.0,0.00021473,2]
[393389925,1762572633751,-500.0,0.00021473,2]
[393389926,1762572633761,-500.0,0.00021473,2]
[393389927,1762572633771,-500.0,0.00021473,2]
[393389928,1762572633781,-500.0,0.00021473,2]
[393389929,1762572633791,-500.0,0.00021473,2]
[393389930,1762572633800,-509.30620313,0.00021473,2]
[393389931,1762572633810,-500.0,0.00021473,2]
[393389932,1762572633820,-500.0,0.00021473,2]
[393389933,1762572633829,-506.28497444,0.00021473,2]
[393389934,1762572633840,-500.0,0.00021473,2]
[393389935,1762572633849,-501.31751701,0.00021473,2]
[393389936,1762572633859,-500.0,0.00021473,2]
[393389937,1762572633868,-369.308612,0.00021473,2]
[393389938,1762572633879,-500.0,0.00021473,2]
[393389939,1762572633889,-500.0,0.00021473,2]
[393389940,1762572633899,-178.28757,0.00021473,2]
[393389941,1762572633908,-500.0,0.00021473,2]
[393389942,1762572633919,-500.0,0.00021473,2]
[393389943,1762572633929,-500.0,0.00021473,2]
[393389944,1762572633939,-502.22935597,0.00021473,2]
[393389945,1762572633949,-500.0,0.00021473,2]
[393389946,1762572633959,-500.0,0.00021473,2]
[393389947,1762572633969,-500.0,0.00021473,2]
[393389948,1762572633979,-500.0,0.00021473,2]
[393389949,1762572633989,-218.30575923,0.00021473,2]
[393389950,1762572633998,-500.0,0.00021473,2]
[393389951,1762572634011,-500.0,0.00021473,2]
[393389952,1762572634021,-500.0,0.00021473,2]
[393389953,1762572634030,-500.0,0.00021473,2]
[393389954,1762572634040,-500.0,0.00021473,2]
[393389955,1762572634049,-500.0,0.00021473,2]
[393389956,1762572634059,-500.0,0.00021473,2]
[393389957,1762572634068,-500.0,0.00021473,2]
[393389958,1762572634078,-500.0,0.00021473,2]
[393389959,1762572634088,-500.0,0.00021473,2]
[393389960,1762572634097,-500.0,0.00021473,2]
[393389961,1762572634107,-500.0,0.00021473,2]
[393389962,1762572634118,-1000.0,0.00021487,2]
[393389963,1762572634127,-1000.0,0.00021487,2]
[393389964,1762572634137,-1000.0,0.00021487,2]
[393389965,1762572634146,-1000.0,0.00021487,2]
[393389966,1762572634156,-1122.20830686,0.00021487,2]
[393389967,1762572634165,-500.0,0.00021495,2]
[393389968,1762572634175,-517.14274608,0.00021495,2]
[393389969,1762572634184,-219.79462325,0.00021495,2]
[393389970,1762572634194,-160.0,0.00021495,2]
[393389971,1762572634203,-214.21613039,0.00021496,2]
[393389972,1762572634212,-80204.3725839,0.00021497,2]
[393389973,1762572634222,-387.40667,0.00021497,2]
[393389974,1762572634231,-387.40667,0.00021497,2]
[393389975,1762572634241,-387.40667,0.00021497,2]
[393389976,1762572634250,-387.40667,0.00021497,2]
[393389977,1762572634262,-201.36524788,0.00021499,2]
[393389978,1762572634272,-258.83916937,0.00021499,2]
[393389979,1762572634282,-151.0,0.00021499,2]
[393389980,1762572634291,-151.0,0.00021499,2]
[393389981,1762572634302,-151.0,0.00021499,2]
[393389982,1762572634311,-33506.69162329,0.000215,2]
[393389983,1762572634325,-1632.96652824,0.000215,2]
[393389984,1762572634336,-900.41152114,0.000215,2]
[393390021,1762572638532,-454.83871577,0.00020988,2]
[393390023,1762572638546,-45.16128423,0.00020988,2]
[393390025,1762572638557,-500.0,0.00020988,2]
[393390027,1762572638567,-500.0,0.00020988,2]
[393390029,1762572638579,-500.0,0.00020988,2]
[393390031,1762572638589,-500.0,0.00020988,2]
[393390033,1762572638599,-470.29573746,0.00020988,2]
[393390035,1762572638610,-500.0,0.00020988,2]
[393390037,1762572638619,-500.0,0.00020988,2]
[393390039,1762572638630,-500.0,0.00020988,2]
[393390041,1762572638639,-500.0,0.00020988,2]
[393390043,1762572638649,-500.0,0.00020988,2]
[393390045,1762572638659,-500.0,0.00020988,2]
[393390047,1762572638669,-500.0,0.00020988,2]
[393390049,1762572638679,-500.0,0.00020988,2]
[393390051,1762572638687,-500.0,0.00020988,2]
[393390053,1762572638697,-500.0,0.00020988,2]
[393390055,1762572638706,-500.0,0.00020988,2]
[393390057,1762572638715,-500.0,0.00020988,2]
[393390059,1762572638724,-152.89,0.00021487,10]
[393390061,1762572638734,-7213.99857745,0.000215,2]
[393390063,1762572638745,-25270.34802983,0.000215,2]
[393390065,1762572638757,-3651.0,0.000215,2]
[393390234,1762572640691,-908.94263821,0.000215,2]
[393390278,1762572646937,-678.92998736,0.00021285,2]
[393390279,1762572646950,-3476.97321941,0.00021285,2]
[393390280,1762572646960,-26791.76190009,0.000215,2]
[393390281,1762572646970,-153.04695112,0.000215,2]
[393390282,1762572646980,-153.08701271,0.000215,2]
[393390283,1762572646990,-387.40667,0.000215,2]
[393390284,1762572647081,-387.40667,0.000215,2]
[393390285,1762572647092,-387.40667,0.000215,2]
[393390286,1762572647102,-387.40667,0.000215,2]
[393390287,1762572647113,-153.0,0.000215,2]
[393390288,1762572647124,-151.0,0.000215,2]
[393390289,1762572647133,-151.0,0.000215,2]
[393390290,1762572647143,-153.99640434,0.000215,2]
[393390291,1762572647152,-199.24581738,0.000215,2]
[393390292,1762572647161,-151.0,0.000215,2]
[393390293,1762572647170,-151.0,0.000215,2]
[393390294,1762572647180,-152.38908668,0.000215,2]
[393390295,1762572647189,-152.0794679,0.000215,2]
[393390296,1762572647199,-151.0,0.000215,2]
[393390298,1762572647207,-500.0,0.000215,2]
[393390300,1762572647217,-156.03967403,0.000215,2]
[393390301,1762572647226,-154.45658253,0.000215,2]
[393390302,1762572647235,-202.08622926,0.000215,2]
[393390303,1762572647245,-151.0,0.000215,2]
[393390304,1762572647254,-154.47869256,0.000215,2]
[393390305,1762572647264,-500.0,0.000215,2]
[393390306,1762572647276,-160.47,0.000215,2]
[393390307,1762572647285,-1000.0,0.00021521,2]
[393390308,1762572647294,-1000.0,0.00021521,2]
[393390309,1762572647303,-505.88240289,0.00021521,2]
[393390310,1762572647313,-1000.0,0.00021521,2]
[393390311,1762572647323,-1000.0,0.00021521,2]
[393390312,1762572647333,-395.97202643,0.00021521,2]
[393390325,1762573166010,2000.0,0.00037025,20]
[393390326,1762573186711,2000.0,0.00037025,20]
[393390327,1762573206420,2000.0,0.00037025,20]
[393390328,1762573226327,2000.0,0.00037025,20]
[393390329,1762573246351,2000.0,0.00037025,20]
[393390330,1762573266134,2000.0,0.00037025,20]
[393390332,1762573286806,2000.0,0.00037025,20]
[393390334,1762573306557,2000.0,0.00037025,20]
[393390336,1762573319581,9417.59742492,0.00037025,60]
[393390345,1762573402822,1517.0,0.00018,2]
[393390347,1762573464498,3424.40746534,0.00037028,120]
[393390357,1762573586436,542.547005,0.00013699,2]
[393390359,1762573661823,1227.0,0.00018,10]
[393390360,1762573691497,195.80974,0.00037028,60]
[393390454,1762573831759,-160.0,0.00019616,2]
[393390456,1762573831769,-2731.76166933,0.00019616,2]
[393390457,1762573831778,-193.04458613,0.00019715,2]
[393390459,1762573831788,-453.30739,0.00019814,2]
[393390461,1762573831797,-542.547005,0.00020187,2]
[393390463,1762573831807,-151.368,0.00020472,2]
[393390465,1762573831816,-1200.0,0.00020796,2]
[393390467,1762573831825,-300.0,0.00020797,2]
[393390469,1762573831834,-1200.0,0.00020798,2]
[393390471,1762573831843,-500.0,0.00020872,2]
[393390473,1762573831853,-500.0,0.00020873,2]
[393390475,1762573831863,-367.37980833,0.00020873,2]
[393390477,1762573831874,-225.6277657,0.00020873,2]
[393390480,1762573831883,-500.0,0.00020873,2]
[393390482,1762573831895,-500.0,0.00020873,2]
[393390484,1762573831904,-500.0,0.00020873,2]
[393390486,1762573831913,-500.0,0.00020873,2]
[393390488,1762573831923,-330.58966784,0.00020873,2]
[393390490,1762573831935,-167.04616851,0.00020873,2]
[393390492,1762573831943,-503.66006247,0.00020873,2]
[393390494,1762573831953,-501.74051135,0.00020873,2]
[393390496,1762573831964,-460.92325767,0.00020873,2]
[393390556,1762573837752,-39.07674233,0.00020873,2]
[393390558,1762573837761,-500.0,0.00020873,2]
[393390560,1762573837771,-500.0,0.00020873,2]
[393390562,1762573837781,-500.0,0.00020873,2]
[393390564,1762573837791,-500.0,0.00020873,2]
[393390566,1762573837800,-500.0,0.00020873,2]
[393390568,1762573837810,-764.5,0.0002088,10]
[393390570,1762573837819,-299.28503513,0.00020889,2]
[393390572,1762573837828,-2309.72889445,0.0002089,2]
[393390710,1762573839808,-269.22075656,0.0002089,2]
[393390715,1762573839862,-596.9,0.0002089,2]
[393391067,1762573843305,-500.0,0.00020889,2]
[393391069,1762573843316,-500.0,0.00020889,2]
[393391071,1762573843326,-378.67077109,0.00020889,2]
[393391073,1762573843335,-170.60616436,0.00020889,2]
[393391074,1762573843344,-500.0,0.00020889,2]
[393391076,1762573843353,-500.0,0.00020889,2]
[393391078,1762573843362,-500.0,0.00020889,2]
[393391080,1762573843371,-500.0,0.00020889,2]
[393391082,1762573843381,-500.0,0.00020889,2]
[393391084,1762573843389,-376.53838889,0.00020889,2]
[393391086,1762573843399,-500.0,0.00020889,2]
[393391088,1762573843408,-500.0,0.00020889,2]
[393391090,1762573843418,-500.0,0.00020889,2]
[393391092,1762573843428,-500.0,0.00020889,2]
[393391094,1762573843437,-500.0,0.00020889,2]
[393391096,1762573843447,-500.0,0.00020889,2]
[393391098,1762573843457,-500.0,0.00020889,2]
[393391100,1762573843467,-500.0,0.00020889,2]